bitfinex/quotes_SOLUSD_20250212
["timestamp","ask_amount","ask_price","bid_price","bid_amount"]
[1739379014097,42.32946235,192.4,192.34,42.32946235]
[1739379014317,1.6627,192.45,192.29,7.28889174]
[1739379014528,42.32946235,192.44,192.37,42.32946235]
[1739379014823,0.03,192.46,192.32,51.4]
[1739379015127,0.03,192.46,192.4,42.32946235]
[1739379015421,0.03,192.46,192.41,5.1972]
[1739379015923,0.03,192.46,192.41,47.52666235]
[1739379016123,42.35946235,192.46,192.41,5.1972]
[1739379016511,0.03,192.46,192.41,5.1972]
[1739379016702,0.03,192.46,192.41,47.52666235]
[1739379017026,42.32946235,192.42,192.38,5.1978]
[1739379017200,42.32946235,192.41,192.38,5.1978]
[1739379017400,42.32946235,192.45,192.38,47.52726235]
[1739379017595,0.03,192.45,192.38,5.1978]
[1739379018529,0.03,192.45,192.41,42.32946235]
[1739379019396,42.32946235,192.44,192.38,42.32946235]
[1739379019600,42.32946235,192.42,192.37,5.1983]
[1739379019916,42.32946235,192.39,192.34,5.1991]
[1739379020104,42.32946235,192.4,192.34,5.1991]
[1739379020310,42.32946235,192.41,192.34,47.52856235]
[1739379020626,42.32946235,192.41,192.35,42.32946235]
[1739379020823,42.32946235,192.41,192.36,5.1985]
[1739379021326,42.32946235,192.39,192.36,5.1985]
[1739379021903,2.5982,192.44,192.31,42.32946235]
[1739379021904,42.32946235,192.37,192.31,42.32946235]
[1739379022115,21.35074853,192.43,192.31,5.1999]
[1739379022116,42.32946235,192.36,192.31,5.1999]
[1739379022425,42.32946235,192.37,192.31,47.52936235]
[1739379022610,42.32946235,192.39,192.32,42.32946235]
[1739379023016,42.32946235,192.4,192.33,42.32946235]
[1739379023834,42.32946235,192.36,192.31,18.1997]
[1739379024121,42.32946235,192.36,192.31,12.9998]
[1739379024420,42.32946235,192.39,192.33,42.32946235]
[1739379024996,42.32946235,192.41,192.34,42.32946235]
[1739379025426,42.32946235,192.41,192.35,5.1988]
[1739379025626,42.32946235,192.4,192.35,5.1988]
[1739379026527,42.32946235,192.42,192.35,47.52826235]
[1739379026729,42.32946235,192.43,192.37,42.32946235]
[1739379027226,42.32946235,192.42,192.36,42.32946235]
[1739379027531,42.32946235,192.39,192.32,42.32946235]
[1739379027717,42.32946235,192.42,192.36,42.32946235]
[1739379028036,42.32946235,192.43,192.37,42.32946235]
[1739379028636,0.03,192.45,192.39,42.32946235]
[1739379028833,42.35946235,192.45,192.38,42.32946235]
[1739379029934,42.32946235,192.43,192.39,5.1977]
[1739379030436,42.32946235,192.44,192.39,5.1977]
[1739379030828,42.32946235,192.44,192.38,5.198]
[1739379031214,42.32946235,192.43,192.38,5.198]
[1739379031406,42.32946235,192.43,192.38,10.198]
[1739379031613,42.32946235,192.44,192.38,52.52746235]
[1739379031911,42.32946235,192.44,192.38,10.198]
[1739379032428,42.35946235,192.45,192.38,52.52746235]
[1739379032608,42.32946235,192.44,192.38,52.52746235]
[1739379033010,42.32946235,192.42,192.38,10.198]
[1739379033230,42.32946235,192.4,192.38,10.198]
[1739379033738,42.32946235,192.43,192.38,10.198]
[1739379034123,42.32946235,192.42,192.38,10.198]
[1739379034322,42.32946235,192.41,192.38,10.198]
[1739379034644,42.32946235,192.43,192.38,10.198]
[1739379035536,42.32946235,192.42,192.38,10.198]
[1739379035737,25.98384058,192.42,192.38,10.198]
[1739379036126,25.98384058,192.43,192.38,10.198]
[1739379036515,25.98384058,192.42,192.38,10.198]
[1739379037017,25.98384058,192.43,192.38,10.198]
[1739379037940,0.03,192.45,192.38,36.18184058]
[1739379037941,26.01384058,192.45,192.38,36.18184058]
[1739379038542,25.98384058,192.44,192.38,36.18184058]
[1739379039039,0.03,192.45,192.4,25.98384058]
[1739379039242,0.03,192.45,192.43,25.98384058]
[1739379039848,0.03,192.45,192.44,25.98384058]
[1739379040046,0.03,192.46,192.44,25.98384058]
[1739379040341,25.98384058,192.57,192.45,27.07468195]
[1739379040529,25.98384058,192.57,192.5,25.98384058]
[1739379041138,1.0,192.62,192.51,31.17834058]
[1739379041139,25.98384058,192.58,192.51,31.17834058]
[1739379041337,25.98384058,192.63,192.56,25.98384058]
[1739379041731,25.98384058,192.63,192.57,25.98384058]
[1739379041926,26.01384058,192.65,192.59,25.98384058]
[1739379042139,26.01384058,192.65,192.58,25.98384058]
[1739379042330,25.98384058,192.64,192.58,25.98384058]
[1739379042526,25.98384058,192.63,192.57,25.98384058]
[1739379043029,25.98384058,192.64,192.58,25.98384058]
[1739379043233,25.98384058,192.63,192.57,25.98384058]
[1739379043422,25.98384058,192.58,192.52,27.58554058]
[1739379043624,42.15438833,192.58,192.53,5.1939]
[1739379043837,0.03,192.57,192.55,42.15438833]
[1739379044044,0.03,192.57,192.53,6.28441588]
[1739379044422,0.03,192.57,192.53,5.1939]
[1739379044832,0.03,192.57,192.48,1.5007]
[1739379045157,42.18438833,192.57,192.5,42.15438833]
[1739379045348,42.18438833,192.57,192.51,42.15438833]
[1739379045523,0.03,192.57,192.51,42.15438833]
[1739379045728,42.18438833,192.57,192.5,42.15438833]
[1739379045937,42.15438833,192.56,192.49,47.34938833]
[1739379046252,42.15438833,192.54,192.48,6.6959]
[1739379046455,42.15438833,192.53,192.48,6.6959]
[1739379046852,42.15438833,192.54,192.48,5.1952]
[1739379047149,42.15438833,192.53,192.47,42.15438833]
[1739379047455,42.15438833,192.53,192.46,53.40308833]
[1739379047948,42.15438833,192.53,192.46,47.34998833]
[1739379048163,42.15438833,192.52,192.46,5.1956]
[1739379048364,42.15438833,192.51,192.46,5.1956]
[1739379048676,42.15438833,192.54,192.48,42.15438833]
[1739379049065,42.18438833,192.57,192.5,42.15438833]
[1739379049360,42.15438833,192.56,192.49,42.15438833]
[1739379049566,42.18438833,192.57,192.5,42.15438833]
[1739379049749,42.15438833,192.54,192.48,5.195]
[1739379050065,42.15438833,192.52,192.48,5.195]
[1739379050272,42.15438833,192.52,192.46,5.1956]
[1739379050465,42.15438833,192.51,192.46,5.1956]
[1739379051355,42.15438833,192.5,192.46,5.1956]
[1739379052056,42.15438833,192.49,192.46,5.1956]
[1739379052267,42.15438833,192.5,192.46,5.1956]
[1739379052466,42.15438833,192.51,192.44,42.15438833]
[1739379052766,2.5965,192.56,192.43,5.1966]
[1739379053265,8.0842,192.53,192.39,5.1977]
[1739379053566,13.78831853,192.52,192.39,5.1977]
[1739379053862,42.15438833,192.44,192.39,5.1977]
[1739379054042,42.15438833,192.47,192.41,42.15438833]
[1739379054242,42.15438833,192.48,192.41,42.15438833]
[1739379054458,42.15438833,192.48,192.43,5.1966]
[1739379054659,42.15438833,192.47,192.43,5.1966]
[1739379054861,42.15438833,192.45,192.39,5.1977]
[1739379055072,42.15438833,192.42,192.39,5.1977]
[1739379055271,42.15438833,192.41,192.39,5.1977]
[1739379055689,42.15438833,192.42,192.39,10.1977]
[1739379055899,42.15438833,192.44,192.39,10.1977]
[1739379056054,42.15438833,192.43,192.39,10.1977]
[1739379056250,42.15438833,192.41,192.39,5.0]
[1739379056481,42.15438833,192.4,192.39,5.0]
[1739379056689,42.15438833,192.42,192.39,5.0]
[1739379056884,42.15438833,192.41,192.39,5.0]
[1739379057386,42.15438833,192.4,192.39,5.0]
[1739379058372,84.30877666,192.4,192.39,5.0]
[1739379059083,42.15438833,192.4,192.39,5.0]
[1739379059409,42.15438833,192.41,192.39,5.0]
[1739379059689,42.15438833,192.43,192.39,10.1977]
[1739379059863,42.15438833,192.42,192.39,10.1977]
[1739379060061,42.15438833,192.43,192.39,10.1977]
[1739379060587,42.15438833,192.47,192.4,42.15438833]
[1739379060971,42.15438833,192.44,192.39,10.1977]
[1739379061179,13.41184853,192.48,192.39,10.1977]
[1739379061487,13.41184853,192.48,192.39,5.0]
[1739379061488,42.15438833,192.4,192.39,5.0]
[1739379062069,42.15438833,192.41,192.39,5.0]
[1739379062992,42.15438833,192.43,192.39,10.1976]
[1739379063493,42.15438833,192.45,192.39,52.35198833]
[1739379063696,25.97546358,192.45,192.39,36.17306358]
[1739379064165,1.5739,192.49,192.4,25.97546358]
[1739379064491,25.97546358,192.46,192.41,5.1972]
[1739379064696,25.97546358,192.47,192.41,31.17266358]
[1739379065000,0.03,192.52,192.46,25.97546358]
[1739379065164,0.03,192.52,192.47,25.97546358]
[1739379066175,0.03,192.52,192.48,25.97546358]
[1739379066371,0.03,192.52,192.49,25.97546358]
[1739379066575,0.03,192.52,192.5,25.97546358]
[1739379066886,0.03,192.52,192.49,25.97546358]
[1739379067497,0.03,192.52,192.46,25.97546358]
[1739379067662,25.97546358,192.49,192.44,5.1964]
[1739379067865,25.97546358,192.45,192.44,5.1964]
[1739379068089,0.03,192.52,192.4,5.1975]
[1739379068289,0.03,192.52,192.4,6.28869137]
[1739379068497,0.03,192.52,192.4,5.1975]
[1739379068879,0.03,192.52,192.41,1.09115278]
[1739379069280,25.97546358,192.51,192.44,25.97546358]
[1739379069482,25.97546358,192.51,192.45,25.97546358]
[1739379069682,0.03,192.52,192.47,25.97546358]
[1739379070281,0.03,192.52,192.46,25.97546358]
[1739379070581,0.03,192.52,192.48,25.97546358]
[1739379070788,0.03,192.52,192.49,25.97546358]
[1739379072180,0.03,192.52,192.5,5.1948]
[1739379072404,26.00546358,192.52,192.5,5.1948]
[1739379072578,0.03,192.52,192.5,5.1948]
[1739379073383,25.97546358,192.51,192.42,45.33976358]
[1739379073591,0.03,192.52,192.43,5.1966]
[1739379073592,25.97546358,192.47,192.43,5.1966]
[1739379073895,25.97546358,192.46,192.43,5.1966]
[1739379074072,25.97546358,192.48,192.43,5.1966]
[1739379074275,25.97546358,192.47,192.43,5.1966]
[1739379074475,25.97546358,192.48,192.43,5.1966]
[1739379074676,25.97546358,192.49,192.43,5.1966]
[1739379074899,26.00546358,192.52,192.45,25.97546358]
[1739379075305,26.00546358,192.52,192.46,25.97546358]
[1739379075506,0.03,192.52,192.47,25.97546358]
[1739379075804,0.03,192.52,192.48,25.97546358]
[1739379076000,0.03,192.52,192.49,25.97546358]
[1739379076392,0.03,192.52,192.48,25.97546358]
[1739379076588,0.03,192.52,192.49,25.97546358]
[1739379076906,0.03,192.52,192.48,25.97546358]
[1739379077090,0.03,192.52,192.5,25.97546358]
[1739379077410,0.03,192.52,192.49,25.97546358]
[1739379077581,0.03,192.52,192.5,5.1948]
[1739379078415,0.03,192.52,192.5,31.17026358]
[1739379078594,0.03,192.52,192.51,25.97546358]
[1739379078909,0.03,192.52,192.51,31.16996358]
[1739379079122,0.03,192.52,192.51,32.2604225]
[1739379080209,0.0001,192.52,192.51,32.2604225]
[1739379080589,0.03,192.57,192.54,20.0]
[1739379080791,0.03,192.57,192.56,25.97546358]
[1739379081695,0.0001,192.57,192.56,25.97546358]
[1739379081898,0.0001,192.57,192.56,33.67386358]
[1739379082106,28.56986358,192.72,192.6,18.1723]
[1739379082414,25.97546358,192.74,192.67,25.97546358]
[1739379082610,2.5938,192.76,192.61,2.08989103]
[1739379082787,0.03,192.72,192.7,25.97546358]
[1739379082990,0.03,192.72,192.65,20.0]
[1739379083189,0.03,192.72,192.66,1.08952313]
[1739379084006,0.03,192.72,192.65,31.4]
[1739379084210,25.97546358,192.71,192.64,25.97546358]
[1739379084385,25.97546358,192.69,192.63,31.16646358]
[1739379084590,25.97546358,192.66,192.6,25.97546358]
[1739379084892,13.41184853,192.7,192.59,25.97546358]
[1739379085211,25.97546358,192.65,192.59,25.97546358]
[1739379085415,25.97546358,192.66,192.59,25.97546358]
[1739379086026,25.97546358,192.63,192.56,42.5154827]
[1739379086224,25.97546358,192.63,192.56,31.16846358]
[1739379086717,2.5954,192.65,192.58,25.97546358]
[1739379086718,25.97546358,192.64,192.58,25.97546358]
[1739379087023,28.57056358,192.67,192.6,25.97546358]
[1739379087225,28.57056358,192.67,192.61,25.97546358]
[1739379087226,25.97546358,192.67,192.61,25.97546358]
[1739379087431,2.5949,192.68,192.62,25.97546358]
[1739379087796,28.57026358,192.7,192.64,25.97546358]
[1739379088423,25.97546358,192.69,192.62,25.97546358]
[1739379088635,2.5948,192.7,192.59,25.97546358]
[1739379088636,25.97546358,192.66,192.59,25.97546358]
[1739379089217,25.97546358,192.67,192.6,25.97546358]
[1739379089795,28.57056358,192.67,192.6,25.97546358]
[1739379089996,28.57056358,192.67,192.61,25.97546358]
[1739379090336,28.57036358,192.69,192.62,25.97546358]
[1739379090504,10.7812,192.71,192.65,25.97546358]
[1739379090705,2.6244,192.72,192.66,25.97546358]
[1739379091007,25.97546358,192.71,192.65,25.97546358]
[1739379091221,25.97546358,192.69,192.63,25.97546358]
[1739379091407,25.97546358,192.7,192.63,25.97546358]
[1739379091820,0.03,192.67,192.65,25.97546358]
[1739379092025,0.03,192.67,192.66,25.97546358]
[1739379092716,0.03,192.67,192.63,12.31370011]
[1739379092717,0.03,192.67,192.64,25.97546358]
[1739379092909,0.03,192.67,192.65,25.97546358]
[1739379093416,0.03,192.67,192.66,25.97546358]
[1739379093808,0.03,192.67,192.66,31.16586358]
[1739379095003,25.97546358,192.78,192.69,20.0]
[1739379095203,25.97546358,192.78,192.71,25.97546358]
[1739379095917,25.97546358,192.79,192.73,25.97546358]
[1739379096108,25.97546358,192.8,192.73,25.97546358]
[1739379096312,25.97546358,192.74,192.64,27.06480426]
[1739379096509,25.97546358,192.71,192.65,5.1907]
[1739379096706,25.97546358,192.73,192.66,25.97546358]
[1739379096905,10.6401,192.82,192.68,20.0]
[1739379097116,4.1574,192.82,192.69,1.08962074]
[1739379097524,1.5643,192.82,192.69,1.08962074]
[1739379097831,4.1573,192.82,192.7,18.1629]
[1739379098127,25.97546358,192.8,192.73,25.97546358]
[1739379098328,25.97546358,192.77,192.7,44.13836358]
[1739379098533,25.97546358,192.76,192.7,5.1894]
[1739379098705,25.97546358,192.74,192.7,5.1894]
[1739379099105,25.97546358,192.72,192.66,25.97546358]
[1739379099335,25.97546358,192.71,192.64,25.97546358]
[1739379099521,25.97546358,192.72,192.66,25.97546358]
[1739379099921,25.97546358,192.72,192.65,25.97546358]
[1739379100230,25.97546358,192.7,192.63,25.97546358]
[1739379100543,25.97546358,192.75,192.68,25.97546358]
[1739379100705,28.56936358,192.76,192.69,25.97546358]
[1739379100909,25.97546358,192.74,192.68,25.97546358]
[1739379101207,2.5939,192.76,192.61,19.26102714]
[1739379101424,25.97546358,192.69,192.61,18.1713]
[1739379101629,25.97546358,192.69,192.63,25.97546358]
[1739379101953,2.5945,192.71,192.59,5.1923]
[1739379102251,25.97546358,192.67,192.6,25.97546358]
[1739379102416,25.97546358,192.7,192.64,25.97546358]
[1739379102836,1.6153,192.72,192.62,25.97546358]
[1739379102837,25.97546358,192.68,192.62,25.97546358]
[1739379103038,25.97546358,192.65,192.59,5.1923]
[1739379103220,25.97546358,192.64,192.59,5.1923]
[1739379103538,25.97546358,192.65,192.59,5.1923]
[1739379103736,25.97546358,192.65,192.59,31.16776358]
[1739379103912,25.97546358,192.66,192.59,31.16776358]
[1739379104218,4.2097,192.72,192.6,25.97546358]
[1739379104219,25.97546358,192.67,192.6,25.97546358]
[1739379104428,1.6153,192.72,192.59,5.1923]
[1739379104429,25.97546358,192.65,192.59,5.1923]
[1739379105339,25.97546358,192.66,192.6,25.97546358]
[1739379105638,25.97546358,192.67,192.61,5.1918]
[1739379106409,27.59076358,192.72,192.65,25.97546358]
[1739379106611,25.97546358,192.66,192.61,18.1713]
[1739379107837,25.97546358,192.67,192.61,18.1713]
[1739379108721,25.97546358,192.67,192.6,25.97546358]
[1739379109131,25.97546358,192.66,192.6,25.97546358]
[1739379109346,25.97546358,192.67,192.6,25.97546358]
[1739379109935,25.97546358,192.69,192.63,25.97546358]
[1739379110150,27.59076358,192.72,192.65,25.97546358]
[1739379110322,6.1747,192.78,192.62,1.08994353]
[1739379110323,25.97546358,192.75,192.68,25.97546358]
[1739379111144,25.97546358,192.76,192.69,25.97546358]
[1739379111434,25.97546358,192.77,192.71,25.97546358]
[1739379111604,25.97546358,192.78,192.71,25.97546358]
[1739379111809,25.97546358,192.79,192.72,31.16426358]
[1739379112343,25.97546358,192.81,192.75,25.97546358]
[1739379112841,25.97546358,192.81,192.74,25.97546358]
[1739379113018,25.97546358,192.8,192.73,25.97546358]
[1739379113344,25.97546358,192.8,192.74,5.1883]
[1739379113552,25.97546358,192.77,192.74,5.1883]
[1739379113916,25.97546358,192.78,192.74,5.1883]
[1739379114215,25.97546358,192.78,192.71,25.97546358]
[1739379114216,25.97546358,192.75,192.7,5.1894]
[1739379114542,25.97546358,192.74,192.7,5.1894]
[1739379114744,25.97546358,192.77,192.7,31.16486358]
[1739379115243,25.97546358,192.77,192.72,5.1887]
[1739379116239,25.97546358,192.77,192.7,25.97546358]
[1739379116547,25.97546358,192.77,192.71,31.16456358]
[1739379117045,25.97546358,192.77,192.71,5.1891]
[1739379117344,25.97546358,192.76,192.71,5.1891]
[1739379117848,25.97546358,192.78,192.72,25.97546358]
[1739379118047,25.97546358,192.77,192.71,5.1891]
[1739379118213,25.97546358,192.75,192.71,5.1891]
[1739379118546,25.97546358,192.77,192.71,5.1891]
[1739379118710,28.56896358,192.79,192.72,25.97546358]
[1739379118911,25.97546358,192.78,192.72,25.97546358]
[1739379119243,25.97546358,192.76,192.7,25.97546358]
[1739379120220,25.97546358,192.74,192.68,25.97546358]
[1739379120426,25.97546358,192.72,192.66,31.16586358]
[1739379120625,25.97546358,192.71,192.66,5.1904]
[1739379121019,25.97546358,192.72,192.66,31.16586358]
[1739379121215,1.5417,192.76,192.66,31.16586358]
[1739379121216,25.97546358,192.73,192.66,31.16586358]
[1739379121532,25.97546358,192.75,192.68,25.97546358]
[1739379122447,25.97546358,192.77,192.71,25.97546358]
[1739379122641,25.97546358,192.78,192.72,25.97546358]
[1739379122953,25.97546358,192.75,192.69,25.97546358]
[1739379123320,25.97546358,192.78,192.71,25.97546358]
[1739379123522,25.97546358,192.79,192.73,25.97546358]
[1739379123715,1.5661,192.81,192.74,25.97546358]
[1739379123716,25.97546358,192.8,192.74,25.97546358]
[1739379123921,25.97546358,192.79,192.73,25.97546358]
[1739379124136,25.97546358,192.8,192.73,25.97546358]
[1739379124839,25.97546358,192.8,192.74,25.97546358]
[1739379125346,25.97546358,192.79,192.73,25.97546358]
[1739379125552,25.97546358,192.78,192.71,31.16456358]
[1739379126126,25.97546358,192.8,192.74,25.97546358]
[1739379126323,25.97546358,192.8,192.75,5.188]
[1739379126637,25.97546358,192.79,192.75,5.188]
[1739379126945,25.97546358,192.8,192.75,5.188]
[1739379128120,25.97546358,192.81,192.75,25.97546358]
[1739379128322,13.41184853,192.85,192.78,25.97546358]
[1739379128323,25.97546358,192.85,192.78,25.97546358]
[1739379128555,25.97546358,192.85,192.79,25.97546358]
[1739379128751,25.97546358,192.83,192.77,25.97546358]
[1739379128940,25.97546358,192.79,192.71,18.1619]
[1739379129152,25.97546358,192.78,192.71,18.1619]
[1739379129731,25.97546358,192.78,192.72,25.97546358]
[1739379129928,25.97546358,192.77,192.71,44.13736358]
[1739379130144,25.97546358,192.76,192.71,5.1891]
[1739379130346,25.97546358,192.72,192.68,5.1899]
[1739379130533,25.97546358,192.72,192.65,25.97546358]
[1739379130534,25.97546358,192.71,192.65,5.1907]
[1739379130737,25.97546358,192.72,192.66,25.97546358]
[1739379130941,25.97546358,192.73,192.66,25.97546358]
[1739379131160,25.97546358,192.71,192.65,5.1907]
[1739379131345,25.97546358,192.69,192.65,5.1907]
[1739379131547,25.97546358,192.7,192.65,5.1907]
[1739379132060,25.97546358,192.71,192.65,5.1907]
[1739379132246,25.97546358,192.7,192.65,5.1907]
[1739379132759,25.97546358,192.71,192.65,5.1907]
[1739379132959,25.97546358,192.73,192.67,25.97546358]
[1739379133166,27.48246358,192.76,192.7,25.97546358]
[1739379133349,25.97546358,192.77,192.71,25.97546358]
[1739379133731,25.97546358,192.75,192.69,25.97546358]
[1739379134160,25.97546358,192.72,192.67,5.1902]
[1739379134337,25.97546358,192.68,192.62,31.16696358]
[1739379134756,25.97546358,192.69,192.63,25.97546358]
[1739379134944,25.97546358,192.7,192.64,25.97546358]
[1739379135150,25.97546358,192.73,192.66,25.97546358]
[1739379135347,25.97546358,192.74,192.68,25.97546358]
[1739379135749,25.97546358,192.7,192.63,25.97546358]
[1739379135975,25.97546358,192.67,192.62,5.1915]
[1739379136136,25.97546358,192.67,192.61,0.063]
[1739379136472,25.97546358,192.64,192.61,0.063]
[1739379136646,25.97546358,192.65,192.61,0.063]
[1739379136960,25.97546358,192.69,192.62,25.97546358]
[1739379137670,9.225,192.71,192.65,25.97546358]
[1739379137671,25.97546358,192.71,192.65,25.97546358]
[1739379137852,25.97546358,192.74,192.68,25.97546358]
[1739379138052,25.97546358,192.73,192.67,25.97546358]
[1739379138251,25.97546358,192.76,192.7,25.97546358]
[1739379138874,25.97546358,192.74,192.69,5.1896]
[1739379139072,25.97546358,192.72,192.69,5.1896]
[1739379139442,25.97546358,192.75,192.69,5.1896]
[1739379139771,32.08236358,192.81,192.74,25.97546358]
[1739379139948,25.97546358,192.8,192.73,25.97546358]
[1739379140146,25.97546358,192.8,192.74,5.1883]
[1739379140472,25.97546358,192.79,192.74,5.1883]
[1739379140841,25.97546358,192.8,192.74,5.1883]
[1739379141070,25.97546358,192.82,192.75,25.97546358]
[1739379141283,25.97546358,192.83,192.76,25.97546358]
[1739379141641,8.6524,192.86,192.75,25.97546358]
[1739379141642,25.97546358,192.82,192.75,25.97546358]
[1739379141837,25.97546358,192.83,192.77,25.97546358]
[1739379142080,25.97546358,192.83,192.76,25.97546358]
[1739379142275,25.97546358,192.83,192.77,5.1875]
[1739379142761,25.97546358,192.82,192.77,5.1875]
[1739379143376,25.97546358,192.84,192.78,25.97546358]
[1739379143584,25.97546358,192.84,192.77,31.16296358]
[1739379144180,25.97546358,192.84,192.78,25.97546358]
[1739379144378,25.97546358,192.85,192.79,25.97546358]
[1739379144562,25.97546358,192.84,192.78,25.97546358]
[1739379145750,25.97546358,192.85,192.79,25.97546358]
[1739379146154,25.97546358,192.84,192.78,25.97546358]
[1739379146351,25.97546358,192.85,192.78,25.97546358]
[1739379146580,25.97546358,192.84,192.79,5.1869]
[1739379147254,25.97546358,192.85,192.79,5.1869]
[1739379148063,25.97546358,192.87,192.8,25.97546358]
[1739379148297,25.97546358,192.87,192.81,25.97546358]
[1739379148583,25.97546358,192.87,192.77,17.9682]
[1739379148584,25.97546358,192.87,192.82,5.1861]
[1739379149388,25.97546358,192.85,192.8,5.1865]
[1739379150095,25.97546358,192.87,192.8,31.16196358]
[1739379150271,25.97546358,192.88,192.81,25.97546358]
[1739379150470,25.97546358,192.88,192.82,25.97546358]
[1739379150670,25.97546358,192.88,192.81,25.97546358]
[1739379150892,25.97546358,192.84,192.78,25.97546358]
[1739379151080,25.97546358,192.79,192.77,5.0]
[1739379151287,9.0724,192.89,192.77,10.1874]
[1739379152795,25.97546358,192.86,192.8,25.97546358]
[1739379153463,25.97546358,192.87,192.8,25.97546358]
[1739379153980,26.00546358,192.85,192.78,25.97546358]
[1739379154179,25.97546358,192.83,192.77,36.16286358]
[1739379154492,25.97546358,192.83,192.77,10.1874]
[1739379154871,25.97546358,192.79,192.77,5.0]
[1739379155070,2.6226,192.85,192.77,5.0]
[1739379155071,25.97546358,192.78,192.77,5.0]
[1739379155271,25.97546358,192.79,192.77,5.0]
[1739379155690,25.97546358,192.82,192.77,10.1874]
[1739379155891,25.97546358,192.83,192.77,5.1874]
[1739379156199,25.97546358,192.86,192.8,25.97546358]
[1739379156379,25.97546358,192.87,192.8,25.97546358]
[1739379156698,25.97546358,192.91,192.84,25.97546358]
[1739379156995,25.97546358,192.91,192.84,31.16086358]
[1739379157192,25.97546358,192.92,192.86,25.97546358]
[1739379157380,25.97546358,192.93,192.86,25.97546358]
[1739379158291,25.97546358,192.94,192.88,25.97546358]
[1739379158593,25.97546358,192.96,192.9,25.97546358]
[1739379158794,25.97546358,192.95,192.89,25.97546358]
[1739379158992,25.97546358,192.94,192.88,25.97546358]
[1739379159297,25.97546358,192.96,192.89,25.97546358]
[1739379159894,25.97546358,192.95,192.9,5.184]
[1739379160573,25.97546358,192.99,192.93,25.97546358]
[1739379160765,25.97546358,193.0,192.94,25.97546358]
[1739379161705,25.97546358,193.01,192.95,25.97546358]
[1739379161918,25.97546358,192.99,192.93,25.97546358]
[1739379162398,25.97546358,193.0,192.93,25.97546358]
[1739379162772,25.97546358,193.0,192.94,25.97546358]
[1739379163693,2.5898,193.06,192.94,25.97546358]
[1739379163694,25.97546358,193.01,192.94,25.97546358]
[1739379164097,25.97546358,192.99,192.93,5.1831]
[1739379164486,25.97546358,193.0,192.93,31.15856358]
[1739379164885,25.97546358,192.99,192.93,31.15856358]
[1739379165084,25.97546358,192.99,192.93,5.1831]
[1739379165481,25.97546358,192.99,192.93,31.15856358]
[1739379166907,25.97546358,192.97,192.92,11.2543]
[1739379167199,25.97546358,192.98,192.92,11.2543]
[1739379167999,25.97546358,192.97,192.92,11.2543]
[1739379168205,25.97546358,192.96,192.92,5.1834]
[1739379168978,25.97546358,192.96,192.91,5.1837]
[1739379169396,2.6207,193.0,192.91,5.1837]
[1739379169397,25.97546358,192.95,192.91,5.1837]
[1739379169591,16.1505168,192.95,192.91,5.1837]
[1739379170002,16.1505168,192.96,192.91,5.1837]
[1739379170608,16.1505168,192.95,192.91,5.1837]
[1739379170787,16.1505168,192.96,192.91,5.1837]
[1739379171105,16.1505168,192.97,192.91,5.1837]
[1739379171584,16.1505168,192.96,192.91,5.1837]
[1739379171785,16.1505168,192.97,192.91,5.1837]
[1739379172783,16.1505168,192.96,192.91,5.1837]
[1739379173099,16.1505168,192.97,192.91,5.1837]
[1739379173294,16.1505168,192.99,192.92,16.1505168]
[1739379173616,16.1505168,192.95,192.91,5.1837]
[1739379174202,16.1505168,192.96,192.91,5.1837]
[1739379174402,0.03,193.0,192.91,5.1837]
[1739379174705,16.1505168,192.94,192.89,18.1446]
[1739379175004,16.1505168,192.95,192.89,18.1446]
[1739379175193,16.1505168,192.96,192.89,34.2951168]
[1739379176200,16.1505168,192.95,192.89,34.2951168]
[1739379176410,18.7711168,193.0,192.9,17.23885921]
[1739379176411,16.1505168,192.97,192.9,17.23885921]
[1739379176590,16.1505168,192.96,192.9,16.1505168]
[1739379176927,2.6207,193.0,192.89,19.23294367]
[1739379177381,2.6207,193.0,192.89,18.1446]
[1739379177779,0.03,193.0,192.9,1.08832307]
[1739379178000,16.1505168,192.96,192.9,17.23883987]
[1739379178201,16.1505168,192.98,192.91,16.1505168]
[1739379178403,0.03,193.0,192.94,16.1505168]
[1739379178603,0.03,193.0,192.95,16.1505168]
[1739379178791,16.1805168,193.0,192.93,16.1505168]
[1739379178989,16.1805168,193.0,192.94,1.08802996]
[1739379179190,0.03,193.0,192.91,32.48803712]
[1739379179512,16.1505168,192.99,192.93,16.1505168]
[1739379179683,16.1505168,192.98,192.92,16.1505168]
[1739379179884,16.1505168,192.98,192.93,18.1412]
[1739379180195,16.1505168,192.99,192.93,19.22931558]